[Event "Early-Titled-Tuesday-Blitz-February-06-2024"]
[Site "Chess.com"]
[Date "2024.02.06"]
[Round "5"]
[White "AnaKuchava"]
[Black "Chernyavsky_A"]
[Result "0-1"]
[WhiteElo "2192"]
[BlackElo "2396"]
[TimeControl "180+1"]
[EndTime "8:55:15 PST"]
[Termination "Chernyavsky_A won on time"]

1. d4 {[%clk 0:03:00.9]} 1... Nf6 {[%clk 0:02:58.4]} 2. Nf3 {[%clk 0:02:59.5]}
2... g6 {[%clk 0:02:58.7]} 3. c4 {[%clk 0:02:57.9]} 3... Bg7 {[%clk 0:02:59.1]}
4. Nc3 {[%clk 0:02:56.9]} 4... O-O {[%clk 0:02:58.9]} 5. e4 {[%clk 0:02:57.6]}
5... d6 {[%clk 0:02:58.9]} 6. Be2 {[%clk 0:02:58.2]} 6... e5 {[%clk 0:02:59]} 7.
O-O {[%clk 0:02:57.7]} 7... Nc6 {[%clk 0:02:58.7]} 8. Be3 {[%clk 0:02:57.2]}
8... Ng4 {[%clk 0:02:57.7]} 9. Bg5 {[%clk 0:02:56.7]} 9... f6 {[%clk 0:02:58.3]}
10. Bc1 {[%clk 0:02:56]} 10... Nh6 {[%clk 0:02:44.2]} 11. dxe5 {[%clk
0:02:16.6]} 11... fxe5 {[%clk 0:02:42]} 12. Bg5 {[%clk 0:02:14.3]} 12... Qe8
{[%clk 0:02:38]} 13. Nd5 {[%clk 0:02:11.6]} 13... Rf7 {[%clk 0:02:29.3]} 14. h3
{[%clk 0:02:04]} 14... Kh8 {[%clk 0:02:17.8]} 15. Qd2 {[%clk 0:01:48.9]} 15...
Ng8 {[%clk 0:02:17.2]} 16. b4 {[%clk 0:01:44.4]} 16... h6 {[%clk 0:02:10.8]} 17.
Be3 {[%clk 0:01:38.4]} 17... Be6 {[%clk 0:02:07.6]} 18. b5 {[%clk 0:01:30.9]}
18... Nd8 {[%clk 0:02:06.2]} 19. c5 {[%clk 0:01:23.9]} 19... c6 {[%clk 0:02:03]}
20. bxc6 {[%clk 0:01:13.7]} 20... bxc6 {[%clk 0:02:03]} 21. Nb4 {[%clk
0:01:11.8]} 21... a5 {[%clk 0:02:00.2]} 22. Nd3 {[%clk 0:01:02.9]} 22... Nf6
{[%clk 0:01:42.1]} 23. cxd6 {[%clk 0:00:56.7]} 23... Nxe4 {[%clk 0:01:41.9]} 24.
Qc2 {[%clk 0:00:54.9]} 24... Bd5 {[%clk 0:01:39.9]} 25. Nc5 {[%clk 0:00:45.9]}
25... Nxc5 {[%clk 0:01:33.2]} 26. Bxc5 {[%clk 0:00:46.8]} 26... Ne6 {[%clk
0:01:24.7]} 27. Ba3 {[%clk 0:00:35.5]} 27... Bxf3 {[%clk 0:01:14.5]} 28. Bxf3
{[%clk 0:00:30.9]} 28... Nd4 {[%clk 0:01:13.7]} 29. Qxg6 {[%clk 0:00:25.2]}
29... Nxf3+ {[%clk 0:01:07.5]} 30. gxf3 {[%clk 0:00:26.1]} 30... Rxf3 {[%clk
0:01:08]} 31. Qxe8+ {[%clk 0:00:25.6]} 31... Rxe8 {[%clk 0:01:08.9]} 32. d7
{[%clk 0:00:23.8]} 32... Rd8 {[%clk 0:01:08.8]} 33. Bb2 {[%clk 0:00:08.1]} 33...
Rxd7 {[%clk 0:01:08]} 34. Kg2 {[%clk 0:00:08.2]} 34... Rf5 {[%clk 0:00:58.9]}
35. Rac1 {[%clk 0:00:06.9]} 35... Rd2 {[%clk 0:00:55.7]} 36. Ba3 {[%clk
0:00:02]} 36... Rxa2 {[%clk 0:00:54.7]} 37. Bc5 {[%clk 0:00:02]} 37... e4 {[%clk
0:00:54]} 38. Be3 {[%clk 0:00:01.3]} 38... Rf3 {[%clk 0:00:44.7]} 39. Rfd1
{[%clk 0:00:01.9]} 39... Rxe3 {[%clk 0:00:44.5]} 0-1

[Event "Early-Titled-Tuesday-Blitz-February-06-2024"]
[Site "Chess.com"]
[Date "2024.02.06"]
[Round "5"]
[White "maurovargas01"]
[Black "eightbyeightchess"]
[Result "0-1"]
[WhiteElo "1892"]
[BlackElo "2354"]
[TimeControl "180+1"]
[EndTime "8:55:16 PST"]
[Termination "eightbyeightchess won on time"]

1. e4 {[%clk 0:02:59.7]} 1... d5 {[%clk 0:02:59.2]} 2. e5 {[%clk 0:02:59.4]}
2... c5 {[%clk 0:02:53.5]} 3. f4 {[%clk 0:03:00.3]} 3... Nc6 {[%clk 0:02:53.1]}
4. Nf3 {[%clk 0:03:01.2]} 4... Bf5 {[%clk 0:02:52.2]} 5. Bb5 {[%clk 0:03:02.1]}
5... d4 {[%clk 0:02:52.2]} 6. Bxc6+ {[%clk 0:03:03]} 6... bxc6 {[%clk
0:02:52.1]} 7. d3 {[%clk 0:03:03.7]} 7... e6 {[%clk 0:02:52.6]} 8. Nbd2 {[%clk
0:03:03]} 8... Ne7 {[%clk 0:02:43.4]} 9. Nc4 {[%clk 0:03:02.8]} 9... Nd5 {[%clk
0:02:43.9]} 10. O-O {[%clk 0:03:00.1]} 10... Be7 {[%clk 0:02:43.4]} 11. Qe1
{[%clk 0:02:56.4]} 11... Rb8 {[%clk 0:02:42.3]} 12. a3 {[%clk 0:02:39.8]} 12...
O-O {[%clk 0:02:41]} 13. b3 {[%clk 0:02:37.3]} 13... Bg4 {[%clk 0:02:33.9]} 14.
Nfd2 {[%clk 0:02:28]} 14... Bh4 {[%clk 0:02:08.1]} 15. g3 {[%clk 0:02:22.4]}
15... Be7 {[%clk 0:02:06.3]} 16. Ne4 {[%clk 0:02:21.8]} 16... f5 {[%clk
0:01:35.7]} 17. exf6 {[%clk 0:02:18.8]} 17... Bxf6 {[%clk 0:01:30]} 18. Nxc5
{[%clk 0:02:06.7]} 18... Nc3 {[%clk 0:01:24]} 19. Rf2 {[%clk 0:01:44.7]} 19...
Nd1 {[%clk 0:00:55.9]} 20. Rd2 {[%clk 0:01:06]} 20... Ne3 {[%clk 0:00:50.9]} 21.
Ne4 {[%clk 0:00:50.5]} 21... Nxc4 {[%clk 0:00:35]} 22. Nxf6+ {[%clk 0:00:45.5]}
22... Qxf6 {[%clk 0:00:29.1]} 23. dxc4 {[%clk 0:00:44.5]} 23... d3 {[%clk
0:00:26.2]} 24. Rxd3 {[%clk 0:00:38]} 24... Qxa1 {[%clk 0:00:25.5]} 25. Kg2
{[%clk 0:00:17.1]} 25... Rbd8 {[%clk 0:00:23.8]} 26. Re3 {[%clk 0:00:10.7]}
26... Rd1 {[%clk 0:00:22]} 27. Qb4 {[%clk 0:00:05.1]} 27... Qxc1 {[%clk
0:00:21.1]} 0-1

[Event "Early-Titled-Tuesday-Blitz-February-06-2024"]
[Site "Chess.com"]
[Date "2024.02.06"]
[Round "5"]
[White "FMCarmona"]
[Black "rikchessmx"]
[Result "0-1"]
[WhiteElo "2149"]
[BlackElo "2313"]
[TimeControl "180+1"]
[EndTime "8:55:17 PST"]
[Termination "rikchessmx won on time"]

1. e4 {[%clk 0:03:00.9]} 1... c5 {[%clk 0:02:52.7]} 2. Nf3 {[%clk 0:03:01.3]}
2... e6 {[%clk 0:02:52.5]} 3. d4 {[%clk 0:03:01.6]} 3... cxd4 {[%clk 0:02:53.4]}
4. Nxd4 {[%clk 0:03:01.7]} 4... a6 {[%clk 0:02:54]} 5. Nc3 {[%clk 0:03:01.2]}
5... Qc7 {[%clk 0:02:54.5]} 6. Bd3 {[%clk 0:02:59.4]} 6... Nf6 {[%clk
0:02:53.5]} 7. O-O {[%clk 0:02:49.8]} 7... h5 {[%clk 0:02:52.1]} 8. h3 {[%clk
0:02:36.1]} 8... Bc5 {[%clk 0:02:51]} 9. Nb3 {[%clk 0:02:34.7]} 9... Ba7 {[%clk
0:02:49.8]} 10. Qf3 {[%clk 0:02:14.6]} 10... Nc6 {[%clk 0:02:47.7]} 11. Bf4
{[%clk 0:02:07.8]} 11... d6 {[%clk 0:02:14.6]} 12. Qg3 {[%clk 0:01:57.9]} 12...
Ke7 {[%clk 0:01:36.1]} 13. Rfe1 {[%clk 0:01:31.8]} 13... Bd7 {[%clk 0:01:35.1]}
14. Rad1 {[%clk 0:01:27]} 14... h4 {[%clk 0:01:33.1]} 15. Qh2 {[%clk 0:01:17.7]}
15... Ne5 {[%clk 0:01:32.5]} 16. Be3 {[%clk 0:01:11.5]} 16... Bxe3 {[%clk
0:01:25]} 17. Rxe3 {[%clk 0:01:11.2]} 17... Rag8 {[%clk 0:01:20.3]} 18. Kh1
{[%clk 0:01:05.6]} 18... g5 {[%clk 0:01:18.5]} 19. f4 {[%clk 0:00:55.3]} 19...
Neg4 {[%clk 0:01:18.6]} 20. hxg4 {[%clk 0:00:48]} 20... Nxg4 {[%clk 0:01:18.4]}
21. Qg1 {[%clk 0:00:47.9]} 21... gxf4 {[%clk 0:01:12.6]} 22. Rh3 {[%clk
0:00:45.8]} 22... Ne3 {[%clk 0:01:10.1]} 23. Rxe3 {[%clk 0:00:43.1]} 23... fxe3
{[%clk 0:01:09.3]} 24. Qxe3 {[%clk 0:00:40.2]} 24... h3 {[%clk 0:01:09.3]} 25.
g3 {[%clk 0:00:40.3]} 25... Bc6 {[%clk 0:00:50]} 26. Kh2 {[%clk 0:00:37.3]}
26... Rg4 {[%clk 0:00:39.7]} 27. Nd5+ {[%clk 0:00:15]} 27... exd5 {[%clk
0:00:34]} 28. exd5+ {[%clk 0:00:15.9]} 28... Kf8 {[%clk 0:00:34.2]} 29. dxc6
{[%clk 0:00:16.1]} 29... Qxc6 {[%clk 0:00:33.3]} 30. Rd2 {[%clk 0:00:15]} 30...
Rhg8 {[%clk 0:00:31.2]} 31. Qh6+ {[%clk 0:00:06.8]} 31... Ke7 {[%clk 0:00:25.8]}
32. Re2+ {[%clk 0:00:05.3]} 32... Kd8 {[%clk 0:00:22]} 33. Qf6+ {[%clk
0:00:04.9]} 33... Kc7 {[%clk 0:00:20.5]} 34. Qxf7+ {[%clk 0:00:02.1]} 34... Kb8
{[%clk 0:00:19.5]} 0-1

[Event "Early-Titled-Tuesday-Blitz-February-06-2024"]
[Site "Chess.com"]
[Date "2024.02.06"]
[Round "5"]
[White "GMT4114"]
[Black "yuriydovzik"]
[Result "1-0"]
[WhiteElo "1974"]
[BlackElo "2212"]
[TimeControl "180+1"]
[EndTime "8:55:17 PST"]
[Termination "GMT4114 won on time"]

1. e4 {[%clk 0:03:00.9]} 1... a6 {[%clk 0:02:57.7]} 2. d4 {[%clk 0:03:00.4]}
2... b5 {[%clk 0:02:54.7]} 3. Bd3 {[%clk 0:02:56.2]} 3... e6 {[%clk 0:02:46.6]}
4. Qe2 {[%clk 0:02:55]} 4... c5 {[%clk 0:02:40.3]} 5. c3 {[%clk 0:02:54.6]} 5...
Nf6 {[%clk 0:02:35.5]} 6. Be3 {[%clk 0:02:38.7]} 6... d6 {[%clk 0:02:24.6]} 7.
Nd2 {[%clk 0:02:33]} 7... e5 {[%clk 0:02:19]} 8. dxe5 {[%clk 0:02:15.5]} 8...
dxe5 {[%clk 0:02:17.6]} 9. h3 {[%clk 0:02:15]} 9... Nbd7 {[%clk 0:02:10.9]} 10.
Ngf3 {[%clk 0:02:15.1]} 10... Bd6 {[%clk 0:01:58.2]} 11. Rd1 {[%clk 0:02:14.8]}
11... Qc7 {[%clk 0:01:53.3]} 12. Nf1 {[%clk 0:02:10.7]} 12... O-O {[%clk
0:01:51.6]} 13. Ng3 {[%clk 0:02:10.8]} 13... g6 {[%clk 0:01:48.8]} 14. O-O
{[%clk 0:02:09.1]} 14... Re8 {[%clk 0:01:48.1]} 15. Bc2 {[%clk 0:02:05.3]} 15...
Nf8 {[%clk 0:01:46.6]} 16. Bg5 {[%clk 0:01:53.7]} 16... Kg7 {[%clk 0:01:38.8]}
17. Qe3 {[%clk 0:01:53.4]} 17... Ng8 {[%clk 0:01:27.5]} 18. Ne2 {[%clk
0:01:29.9]} 18... f6 {[%clk 0:01:18.8]} 19. Bh4 {[%clk 0:01:30]} 19... g5 {[%clk
0:01:15]} 20. Bg3 {[%clk 0:01:29.6]} 20... Ng6 {[%clk 0:01:14.2]} 21. Qd3 {[%clk
0:01:12.1]} 21... Bf8 {[%clk 0:01:02.3]} 22. Rfe1 {[%clk 0:00:59.8]} 22... Be6
{[%clk 0:01:00.2]} 23. b3 {[%clk 0:00:52.3]} 23... Rad8 {[%clk 0:00:46.5]} 24.
Qe3 {[%clk 0:00:52.4]} 24... Nf4 {[%clk 0:00:45.9]} 25. Nd2 {[%clk 0:00:34.1]}
25... Ne7 {[%clk 0:00:37.1]} 26. Nf1 {[%clk 0:00:34.1]} 26... Neg6 {[%clk
0:00:36]} 27. Qc1 {[%clk 0:00:30.1]} 27... h5 {[%clk 0:00:28.2]} 28. Bxf4 {[%clk
0:00:29.2]} 28... gxf4 {[%clk 0:00:25.3]} 29. f3 {[%clk 0:00:19.4]} 29... Kf7
{[%clk 0:00:17.6]} 30. Qb2 {[%clk 0:00:19.5]} 30... c4 {[%clk 0:00:11.1]} 31.
Nc1 {[%clk 0:00:18.7]} 31... Bc5+ {[%clk 0:00:03.9]} 32. Kh1 {[%clk 0:00:18.4]}
1-0

[Event "Early-Titled-Tuesday-Blitz-February-06-2024"]
[Site "Chess.com"]
[Date "2024.02.06"]
[Round "5"]
[White "nihalsarin"]
[Black "Hovik_Hayrapetyan"]
[Result "1-0"]
[WhiteElo "3128"]
[BlackElo "2899"]
[TimeControl "180+1"]
[EndTime "8:55:18 PST"]
[Termination "nihalsarin won by resignation"]

1. a3 {[%clk 0:02:56.3]} 1... Nf6 {[%clk 0:02:58.4]} 2. Nf3 {[%clk 0:02:55.3]}
2... d5 {[%clk 0:02:58.7]} 3. e3 {[%clk 0:02:52.2]} 3... c5 {[%clk 0:02:56.7]}
4. b4 {[%clk 0:02:49.6]} 4... e6 {[%clk 0:02:48.5]} 5. bxc5 {[%clk 0:02:49.6]}
5... Bxc5 {[%clk 0:02:49.4]} 6. Bb2 {[%clk 0:02:50.4]} 6... O-O {[%clk
0:02:48.8]} 7. d4 {[%clk 0:02:50.8]} 7... Bd6 {[%clk 0:02:40.3]} 8. Nbd2 {[%clk
0:02:51.4]} 8... b5 {[%clk 0:02:19.3]} 9. Be2 {[%clk 0:02:48.6]} 9... Bb7 {[%clk
0:02:12.1]} 10. O-O {[%clk 0:02:49.3]} 10... a6 {[%clk 0:02:10.7]} 11. a4 {[%clk
0:02:49.3]} 11... b4 {[%clk 0:02:00.5]} 12. c4 {[%clk 0:02:49.6]} 12... bxc3
{[%clk 0:02:00.6]} 13. Bxc3 {[%clk 0:02:50.3]} 13... Ne4 {[%clk 0:01:46.4]} 14.
Nxe4 {[%clk 0:02:48.9]} 14... dxe4 {[%clk 0:01:47.3]} 15. Ne5 {[%clk 0:02:47.2]}
15... Nd7 {[%clk 0:01:35.7]} 16. Rb1 {[%clk 0:02:34.9]} 16... Bd5 {[%clk
0:01:34.5]} 17. a5 {[%clk 0:02:22.2]} 17... Qc7 {[%clk 0:01:33.8]} 18. Nxd7
{[%clk 0:02:21.9]} 18... Bxh2+ {[%clk 0:01:16.7]} 19. Kh1 {[%clk 0:02:21.5]}
19... Qxd7 {[%clk 0:01:16.5]} 20. g3 {[%clk 0:02:03.9]} 20... Bxg3 {[%clk
0:01:13.6]} 21. fxg3 {[%clk 0:02:04.8]} 21... Qc7 {[%clk 0:01:14.1]} 22. Be1
{[%clk 0:02:02.9]} 22... f5 {[%clk 0:01:11.6]} 23. Kg1 {[%clk 0:02:01.1]} 23...
g5 {[%clk 0:01:08.3]} 24. Rc1 {[%clk 0:01:26.7]} 24... Qg7 {[%clk 0:01:07.1]}
25. Bc4 {[%clk 0:01:27.4]} 25... f4 {[%clk 0:00:55.4]} 26. Bxd5 {[%clk
0:01:27.3]} 26... exd5 {[%clk 0:00:55.5]} 27. Qg4 {[%clk 0:01:26.5]} 27... fxe3
{[%clk 0:00:53.4]} 28. Rxf8+ {[%clk 0:00:48.4]} 28... Rxf8 {[%clk 0:00:54.3]}
29. Bb4 {[%clk 0:00:48.4]} 29... h5 {[%clk 0:00:25.4]} 30. Bxf8 {[%clk
0:00:44.2]} 30... Qf6 {[%clk 0:00:17.2]} 31. Qxh5 {[%clk 0:00:32]} 31... Qf2+
{[%clk 0:00:05]} 32. Kh1 {[%clk 0:00:32.1]} 32... Qf3+ {[%clk 0:00:05.9]} 33.
Qxf3 {[%clk 0:00:31.9]} 33... exf3 {[%clk 0:00:06.8]} 34. Bh6 {[%clk 0:00:28.5]}
34... e2 {[%clk 0:00:04.1]} 35. Kg1 {[%clk 0:00:28.4]} 35... g4 {[%clk
0:00:04.8]} 36. Kf2 {[%clk 0:00:28.2]} 1-0

[Event "Early-Titled-Tuesday-Blitz-February-06-2024"]
[Site "Chess.com"]
[Date "2024.02.06"]
[Round "5"]
[White "Ditman2007"]
[Black "WhiteKnight2612"]
[Result "1-0"]
[WhiteElo "2677"]
[BlackElo "2852"]
[TimeControl "180+1"]
[EndTime "8:55:18 PST"]
[Termination "Ditman2007 won by checkmate"]

1. e4 {[%clk 0:02:58]} 1... c5 {[%clk 0:03:00.9]} 2. Nf3 {[%clk 0:02:57.8]} 2...
Nc6 {[%clk 0:02:52.8]} 3. d4 {[%clk 0:02:56.1]} 3... cxd4 {[%clk 0:02:50.6]} 4.
Nxd4 {[%clk 0:02:57]} 4... Nf6 {[%clk 0:02:50.2]} 5. Nc3 {[%clk 0:02:51.6]} 5...
e5 {[%clk 0:02:49.6]} 6. Ndb5 {[%clk 0:02:51.4]} 6... d6 {[%clk 0:02:47]} 7. Bg5
{[%clk 0:02:51.1]} 7... a6 {[%clk 0:02:46.9]} 8. Na3 {[%clk 0:02:51.5]} 8... b5
{[%clk 0:02:47]} 9. Nd5 {[%clk 0:02:52]} 9... Be6 {[%clk 0:02:46.4]} 10. Bxf6
{[%clk 0:02:33.5]} 10... gxf6 {[%clk 0:02:45.3]} 11. c3 {[%clk 0:02:33.9]} 11...
Be7 {[%clk 0:02:36.4]} 12. g3 {[%clk 0:02:33.9]} 12... f5 {[%clk 0:02:31.5]} 13.
Bg2 {[%clk 0:02:33.1]} 13... fxe4 {[%clk 0:02:30]} 14. Bxe4 {[%clk 0:02:31.1]}
14... Rc8 {[%clk 0:02:30.6]} 15. O-O {[%clk 0:02:28.7]} 15... h5 {[%clk
0:02:21]} 16. Nc2 {[%clk 0:02:21.4]} 16... h4 {[%clk 0:02:20.6]} 17. Nce3 {[%clk
0:02:20.2]} 17... Qd7 {[%clk 0:02:19.4]} 18. Qf3 {[%clk 0:02:14.6]} 18... Bd8
{[%clk 0:02:02.5]} 19. Rad1 {[%clk 0:02:10.8]} 19... hxg3 {[%clk 0:01:42.9]} 20.
fxg3 {[%clk 0:02:05.7]} 20... Kf8 {[%clk 0:01:43.2]} 21. Nf5 {[%clk 0:01:59.9]}
21... Ne7 {[%clk 0:01:30.8]} 22. Qg4 {[%clk 0:01:08.2]} 22... Rg8 {[%clk
0:01:20.3]} 23. Qh3 {[%clk 0:01:01.6]} 23... Nxd5 {[%clk 0:01:10.6]} 24. Bxd5
{[%clk 0:00:56.3]} 24... Bb6+ {[%clk 0:00:59]} 25. Kh1 {[%clk 0:00:53.7]} 25...
Bxd5+ {[%clk 0:00:59.1]} 26. Rxd5 {[%clk 0:00:54.2]} 26... Rc6 {[%clk
0:00:14.3]} 27. Qh6+ {[%clk 0:00:50.7]} 27... Ke8 {[%clk 0:00:14.9]} 28. Nxd6+
{[%clk 0:00:48.4]} 28... Rxd6 {[%clk 0:00:12.1]} 29. Qxd6 {[%clk 0:00:49.3]}
29... Qb7 {[%clk 0:00:11.6]} 30. Qxe5+ {[%clk 0:00:43.3]} 30... Kf8 {[%clk
0:00:12]} 31. Qd6+ {[%clk 0:00:43.3]} 31... Kg7 {[%clk 0:00:11.6]} 32. Rf3
{[%clk 0:00:41.6]} 32... Re8 {[%clk 0:00:08.6]} 33. Qf6+ {[%clk 0:00:41.2]}
33... Kf8 {[%clk 0:00:05.1]} 34. Qh8+ {[%clk 0:00:40]} 34... Ke7 {[%clk
0:00:05.7]} 35. Re5+ {[%clk 0:00:40.2]} 35... Kd6 {[%clk 0:00:05.8]} 36. Qf6+
{[%clk 0:00:40.3]} 36... Re6 {[%clk 0:00:05.4]} 37. Rxe6+ {[%clk 0:00:40]} 37...
fxe6 {[%clk 0:00:06.3]} 38. Kg2 {[%clk 0:00:40.6]} 38... Qd5 {[%clk 0:00:06.5]}
39. Qf4+ {[%clk 0:00:40.2]} 39... e5 {[%clk 0:00:06.3]} 40. Qf6+ {[%clk
0:00:39.8]} 40... Kc5 {[%clk 0:00:06.6]} 41. Qe7+ {[%clk 0:00:39.7]} 41... Kc4
{[%clk 0:00:06.9]} 42. b3# {[%clk 0:00:39.1]} 1-0

[Event "Early-Titled-Tuesday-Blitz-February-06-2024"]
[Site "Chess.com"]
[Date "2024.02.06"]
[Round "5"]
[White "Ginger_GM"]
[Black "SantoBlue"]
[Result "0-1"]
[WhiteElo "2683"]
[BlackElo "3001"]
[TimeControl "180+1"]
[EndTime "8:55:19 PST"]
[Termination "SantoBlue won by resignation"]

1. f4 {[%clk 0:03:00.9]} 1... d5 {[%clk 0:02:49.2]} 2. e3 {[%clk 0:03:00.1]}
2... c5 {[%clk 0:02:41.6]} 3. Nf3 {[%clk 0:02:59.7]} 3... Nc6 {[%clk 0:02:42.2]}
4. Bb5 {[%clk 0:02:59.1]} 4... Bd7 {[%clk 0:02:40.6]} 5. b3 {[%clk 0:02:58.1]}
5... e6 {[%clk 0:02:38.6]} 6. Bb2 {[%clk 0:02:58]} 6... Nge7 {[%clk 0:02:38.8]}
7. O-O {[%clk 0:02:56.8]} 7... a6 {[%clk 0:02:39.3]} 8. Be2 {[%clk 0:02:54.9]}
8... Nf5 {[%clk 0:02:34.2]} 9. c4 {[%clk 0:02:41.7]} 9... d4 {[%clk 0:02:29.3]}
10. e4 {[%clk 0:02:38.5]} 10... Nd6 {[%clk 0:02:19.3]} 11. d3 {[%clk 0:02:37.5]}
11... Be7 {[%clk 0:02:19.3]} 12. Nbd2 {[%clk 0:02:35.3]} 12... f6 {[%clk
0:02:16.8]} 13. Qe1 {[%clk 0:02:30.5]} 13... O-O {[%clk 0:02:08.4]} 14. Qg3
{[%clk 0:02:29.6]} 14... Rf7 {[%clk 0:01:45.8]} 15. h4 {[%clk 0:02:27.8]} 15...
Nb4 {[%clk 0:01:39.3]} 16. Rfc1 {[%clk 0:02:18.3]} 16... Qc7 {[%clk 0:01:29.9]}
17. a3 {[%clk 0:02:17.9]} 17... Nc6 {[%clk 0:01:29.4]} 18. h5 {[%clk 0:02:12.1]}
18... Kh8 {[%clk 0:01:25.3]} 19. Nh4 {[%clk 0:02:07.5]} 19... e5 {[%clk
0:01:24.8]} 20. f5 {[%clk 0:01:56.9]} 20... h6 {[%clk 0:01:18.6]} 21. Ng6+
{[%clk 0:01:40]} 21... Kg8 {[%clk 0:01:18.7]} 22. b4 {[%clk 0:01:39.7]} 22...
cxb4 {[%clk 0:01:13.6]} 23. c5 {[%clk 0:01:39.4]} 23... Nb5 {[%clk 0:01:12.9]}
24. Bd1 {[%clk 0:01:37.5]} 24... bxa3 {[%clk 0:01:07.1]} 25. Bxa3 {[%clk
0:01:34.7]} 25... Nc3 {[%clk 0:01:07.7]} 26. Qf2 {[%clk 0:00:55.3]} 26... Nxd1
{[%clk 0:01:06.2]} 27. Rxd1 {[%clk 0:00:55.4]} 27... Bd8 {[%clk 0:00:55.1]} 28.
Nc4 {[%clk 0:00:52.1]} 28... Be7 {[%clk 0:00:46.6]} 29. Nb6 {[%clk 0:00:52.1]}
29... Re8 {[%clk 0:00:41.7]} 30. Nd5 {[%clk 0:00:51]} 30... Qd8 {[%clk
0:00:36.5]} 31. Qg3 {[%clk 0:00:45.8]} 31... Bf8 {[%clk 0:00:35]} 32. Rdb1
{[%clk 0:00:31.7]} 32... Bxf5 {[%clk 0:00:35.2]} 33. Nxf6+ {[%clk 0:00:28.2]}
33... Qxf6 {[%clk 0:00:34.5]} 34. exf5 {[%clk 0:00:27.8]} 34... Qxf5 {[%clk
0:00:35.4]} 35. Rf1 {[%clk 0:00:14.7]} 35... Qxh5 {[%clk 0:00:35.6]} 36. Rxf7
{[%clk 0:00:15]} 36... Kxf7 {[%clk 0:00:36.5]} 37. Rf1+ {[%clk 0:00:15.4]} 37...
Kg8 {[%clk 0:00:36.3]} 38. Nh4 {[%clk 0:00:14.4]} 38... Qg5 {[%clk 0:00:33.2]}
39. Qh3 {[%clk 0:00:14.2]} 39... Qe3+ {[%clk 0:00:32.1]} 40. Qxe3 {[%clk
0:00:14.2]} 40... dxe3 {[%clk 0:00:33]} 41. Re1 {[%clk 0:00:13.9]} 41... b5
{[%clk 0:00:31.6]} 42. Rxe3 {[%clk 0:00:13.3]} 42... b4 {[%clk 0:00:32.2]} 0-1

[Event "Early-Titled-Tuesday-Blitz-February-06-2024"]
[Site "Chess.com"]
[Date "2024.02.06"]
[Round "5"]
[White "platy3"]
[Black "pavet"]
[Result "1-0"]
[WhiteElo "2935"]
[BlackElo "2775"]
[TimeControl "180+1"]
[EndTime "8:55:20 PST"]
[Termination "platy3 won by resignation"]

1. e4 {[%clk 0:03:00.9]} 1... e5 {[%clk 0:02:59.1]} 2. Nf3 {[%clk 0:03:00.7]}
2... Nc6 {[%clk 0:02:57.6]} 3. Bc4 {[%clk 0:03:01.2]} 3... Bc5 {[%clk
0:02:56.8]} 4. d3 {[%clk 0:03:01.1]} 4... Nf6 {[%clk 0:02:57.1]} 5. O-O {[%clk
0:03:00.1]} 5... d6 {[%clk 0:02:57.6]} 6. a4 {[%clk 0:03:00]} 6... a6 {[%clk
0:02:57.5]} 7. Be3 {[%clk 0:02:58.9]} 7... Ba7 {[%clk 0:02:56.4]} 8. c3 {[%clk
0:02:58.1]} 8... O-O {[%clk 0:02:55.7]} 9. h3 {[%clk 0:02:57.7]} 9... Be6 {[%clk
0:02:52.5]} 10. Bxe6 {[%clk 0:02:55.1]} 10... fxe6 {[%clk 0:02:52.6]} 11. Nbd2
{[%clk 0:02:55.6]} 11... Qe8 {[%clk 0:02:32.9]} 12. Qb3 {[%clk 0:02:42]} 12...
Bxe3 {[%clk 0:02:22]} 13. fxe3 {[%clk 0:02:42.9]} 13... Rb8 {[%clk 0:02:22.4]}
14. Rf2 {[%clk 0:02:38.8]} 14... h6 {[%clk 0:02:22.1]} 15. Raf1 {[%clk 0:02:38]}
15... b5 {[%clk 0:02:21.4]} 16. axb5 {[%clk 0:02:36.3]} 16... axb5 {[%clk
0:02:21.9]} 17. g4 {[%clk 0:02:32.5]} 17... Nd7 {[%clk 0:02:16.2]} 18. d4 {[%clk
0:02:26.6]} 18... exd4 {[%clk 0:01:57.5]} 19. exd4 {[%clk 0:02:01.3]} 19... Qe7
{[%clk 0:01:48.9]} 20. Qc2 {[%clk 0:01:35.8]} 20... e5 {[%clk 0:01:41]} 21. Qb3+
{[%clk 0:01:30.5]} 21... Qf7 {[%clk 0:01:22.7]} 22. Qxf7+ {[%clk 0:01:22]} 22...
Rxf7 {[%clk 0:01:22.8]} 23. Ra1 {[%clk 0:01:08.2]} 23... exd4 {[%clk 0:01:16.6]}
24. Nxd4 {[%clk 0:01:06.5]} 24... Nxd4 {[%clk 0:01:05.3]} 25. cxd4 {[%clk
0:01:04.8]} 25... Rxf2 {[%clk 0:00:58.6]} 26. Kxf2 {[%clk 0:01:05.7]} 26... c5
{[%clk 0:00:59.3]} 27. Ra7 {[%clk 0:01:04]} 27... Nf6 {[%clk 0:00:56.9]} 28. d5
{[%clk 0:00:51.1]} 28... Kf8 {[%clk 0:00:48.3]} 29. Ke3 {[%clk 0:00:49.2]} 29...
Re8 {[%clk 0:00:46.7]} 30. Kd3 {[%clk 0:00:49.3]} 30... Re7 {[%clk 0:00:27.1]}
31. Ra6 {[%clk 0:00:49.1]} 31... Ne8 {[%clk 0:00:26.9]} 32. Rb6 {[%clk
0:00:44.1]} 32... Rf7 {[%clk 0:00:16.1]} 33. Rxb5 {[%clk 0:00:41.8]} 33... Rf2
{[%clk 0:00:16.7]} 34. Rb8 {[%clk 0:00:39.8]} 34... Ke7 {[%clk 0:00:17]} 35.
Rb7+ {[%clk 0:00:36.3]} 35... Kf8 {[%clk 0:00:15.6]} 36. e5 {[%clk 0:00:30.3]}
36... dxe5 {[%clk 0:00:14.5]} 37. Ne4 {[%clk 0:00:30.7]} 37... Rf3+ {[%clk
0:00:13.4]} 38. Ke2 {[%clk 0:00:31]} 38... Rf4 {[%clk 0:00:13.7]} 39. Nxc5
{[%clk 0:00:28.2]} 39... Nd6 {[%clk 0:00:13.7]} 40. Ne6+ {[%clk 0:00:27.8]} 1-0